[Event "Titled Tuesday Blitz January 04 2022"]
[White "Pelopidass"]
[Black "Sychev, Klementy"]
[BlackFideId "4114060"]
[WhiteElo "2623"]
[BlackElo "2564"]
[Result "1/2-1/2"]
[Round "10"]
[TimeControl "180+1"]
[Date "2022.01.04"]
[WhiteClock "0:00:05"]
[BlackClock "0:00:07"]

1. d4 {[%clk 0:03:00]}  d5 {[%clk 0:02:52]} 2. Nf3 {[%clk 0:03:01]}  Nf6 {[%clk 0:02:52]} 3. c4 {[%clk 0:03:01]}  c6 {[%clk 0:02:51]} 4. e3 {[%clk 0:03:01]}  Bg4 {[%clk 0:02:36]} 5. h3 {[%clk 0:02:59]}  Bxf3 {[%clk 0:02:34]} 6. Qxf3 {[%clk 0:02:59]}  e6 {[%clk 0:02:35]} 7. Nc3 {[%clk 0:02:58]}  Bb4 {[%clk 0:02:32]} 8. Bd2 {[%clk 0:02:58]}  Nbd7 {[%clk 0:02:30]} 9. Bd3 {[%clk 0:02:57]}  O-O {[%clk 0:02:30]} 10. O-O {[%clk 0:02:57]}  Qe7 {[%clk 0:02:30]} 11. a3 {[%clk 0:02:56]}  Bd6 {[%clk 0:02:26]} 12. e4 {[%clk 0:02:46]}  e5 {[%clk 0:02:16]} 13. exd5 {[%clk 0:02:30]}  exd4 {[%clk 0:02:14]} 14. Ne4 {[%clk 0:02:30]}  cxd5 {[%clk 0:02:09]} 15. Nxd6 {[%clk 0:02:23]}  Qxd6 {[%clk 0:02:05]} 16. Bb4 {[%clk 0:02:23]}  Nc5 {[%clk 0:02:05]} 17. cxd5 {[%clk 0:02:04]}  Rac8 {[%clk 0:01:52]} 18. Rac1 {[%clk 0:01:47]}  Nxd5 {[%clk 0:01:13]} 19. Bf5 {[%clk 0:01:21]}  Rc7 {[%clk 0:01:01]} 20. Rfd1 {[%clk 0:01:14]}  Nxb4 {[%clk 0:00:54]} 21. axb4 {[%clk 0:01:15]}  Na4 {[%clk 0:00:36]} 22. Rxc7 {[%clk 0:01:06]}  Qxc7 {[%clk 0:00:36]} 23. Rxd4 {[%clk 0:01:03]}  Nxb2 {[%clk 0:00:33]} 24. Rd7 {[%clk 0:00:38]}  Qc1+ {[%clk 0:00:29]} 25. Kh2 {[%clk 0:00:38]}  Nc4 {[%clk 0:00:23]} 26. Rd1 {[%clk 0:00:19]}  Qg5 {[%clk 0:00:18]} 27. Bxh7+ {[%clk 0:00:17]}  Kxh7 {[%clk 0:00:18]} 28. Qe4+ {[%clk 0:00:17]}  Kg8 {[%clk 0:00:17]} 29. Qxc4 {[%clk 0:00:18]}  Qe5+ {[%clk 0:00:17]} 30. Kg1 {[%clk 0:00:17]}  Re8 {[%clk 0:00:13]} 31. g3 {[%clk 0:00:16]}  Qe4 {[%clk 0:00:11]} 32. Qb3 {[%clk 0:00:13]}  a6 {[%clk 0:00:10]} 33. Rd7 {[%clk 0:00:12]}  Re6 {[%clk 0:00:08]} 34. Rd8+ {[%clk 0:00:11]}  Kh7 {[%clk 0:00:08]} 35. Rd5 {[%clk 0:00:09]}  Rc6 {[%clk 0:00:05]} 36. Rd1 {[%clk 0:00:07]}  Qf5 {[%clk 0:00:04]} 37. Qe3 {[%clk 0:00:06]}  Rc2 {[%clk 0:00:03]} 38. h4 {[%clk 0:00:05]}  f6 {[%clk 0:00:03]} 39. Kg2 {[%clk 0:00:04]}  Rc4 {[%clk 0:00:03]} 40. Rd4 {[%clk 0:00:03]}  Rc2 {[%clk 0:00:02]} 41. Rf4 {[%clk 0:00:02]}  Qd5+ {[%clk 0:00:02]} 42. Qf3 {[%clk 0:00:01]}  Rd2 {[%clk 0:00:02]} 43. Qxd5 {[%clk 0:00:01]}  Rxd5 {[%clk 0:00:03]} 44. Re4 {[%clk 0:00:02]}  Kg6 {[%clk 0:00:03]} 45. Re7 {[%clk 0:00:02]}  Rb5 {[%clk 0:00:03]} 46. Re4 {[%clk 0:00:03]}  Kf5 {[%clk 0:00:03]} 47. Rc4 {[%clk 0:00:04]}  Ke6 {[%clk 0:00:03]} 48. Rg4 {[%clk 0:00:03]}  Kf7 {[%clk 0:00:03]} 49. Re4 {[%clk 0:00:02]}  b6 {[%clk 0:00:04]} 50. Rc4 {[%clk 0:00:03]}  Kg6 {[%clk 0:00:04]} 51. Kf3 {[%clk 0:00:03]}  Rf5+ {[%clk 0:00:04]} 52. Kg4 {[%clk 0:00:03]}  Rd5 {[%clk 0:00:04]} 53. f4 {[%clk 0:00:03]}  a5 {[%clk 0:00:04]} 54. bxa5 {[%clk 0:00:03]}  bxa5 {[%clk 0:00:05]} 55. Rc6 {[%clk 0:00:03]}  Rb5 {[%clk 0:00:04]} 56. Ra6 {[%clk 0:00:04]}  Rc5 {[%clk 0:00:04]} 57. Ra7 {[%clk 0:00:03]}  Rb5 {[%clk 0:00:04]} 58. Ra6 {[%clk 0:00:04]}  Rc5 {[%clk 0:00:04]} 59. Ra7 {[%clk 0:00:03]}  f5+ {[%clk 0:00:04]} 60. Kh3 {[%clk 0:00:04]}  Rb5 {[%clk 0:00:05]} 61. h5+ {[%clk 0:00:04]}  Kh6 {[%clk 0:00:05]} 62. Kh4 {[%clk 0:00:04]}  Rb1 {[%clk 0:00:05]} 63. Ra6+ {[%clk 0:00:04]}  Kh7 {[%clk 0:00:05]} 64. Kg5 {[%clk 0:00:05]}  Rg1 {[%clk 0:00:05]} 65. Kxf5 {[%clk 0:00:04]}  Rxg3 {[%clk 0:00:05]} 66. Rxa5 {[%clk 0:00:05]}  Rh3 {[%clk 0:00:05]} 67. Kg4 {[%clk 0:00:05]}  Rh1 {[%clk 0:00:06]} 68. Ra7 {[%clk 0:00:06]}  Rg1+ {[%clk 0:00:06]} 69. Kf5 {[%clk 0:00:06]}  Kh6 {[%clk 0:00:06]} 70. Ra8 {[%clk 0:00:05]}  Kh7 {[%clk 0:00:07]} 71. Ra7 {[%clk 0:00:05]}  Rh1 {[%clk 0:00:07]} 72. Kg4 {[%clk 0:00:04]}  Rg1+ {[%clk 0:00:07]} 73. Kf5 {[%clk 0:00:05]} 1/2-1/2


[Site "https://www.chess.com"]

[Event "Titled Tuesday Blitz January 04 2022"]
[White "Pichot, Alan"]
[Black "Nakamura, Hikaru"]
[WhiteFideId "110973"]
[BlackFideId "2016192"]
[WhiteElo "2543"]
[BlackElo "2850"]
[Result "0-1"]
[Round "10"]
[TimeControl "180+1"]
[Date "2022.01.04"]
[WhiteClock "0:00:03"]
[BlackClock "0:00:41"]

1. e4 {[%clk 0:03:00]}  e5 {[%clk 0:02:57]} 2. Nf3 {[%clk 0:03:00]}  Nc6 {[%clk 0:02:58]} 3. Bb5 {[%clk 0:03:01]}  Nf6 {[%clk 0:02:58]} 4. d3 {[%clk 0:03:01]}  Bc5 {[%clk 0:02:58]} 5. c3 {[%clk 0:03:01]}  d5 {[%clk 0:02:58]} 6. exd5 {[%clk 0:02:59]}  Qxd5 {[%clk 0:02:59]} 7. Bc4 {[%clk 0:03:00]}  Qd6 {[%clk 0:02:58]} 8. b4 {[%clk 0:02:57]}  Bb6 {[%clk 0:02:59]} 9. Nbd2 {[%clk 0:02:58]}  Bf5 {[%clk 0:02:55]} 10. Qe2 {[%clk 0:02:57]}  O-O-O {[%clk 0:02:55]} 11. a4 {[%clk 0:02:44]}  e4 {[%clk 0:02:36]} 12. dxe4 {[%clk 0:02:35]}  Nxe4 {[%clk 0:02:36]} 13. Nxe4 {[%clk 0:02:28]}  Bxe4 {[%clk 0:02:37]} 14. O-O {[%clk 0:02:22]}  Bxf3 {[%clk 0:01:22]} 15. Qxf3 {[%clk 0:02:22]}  a5 {[%clk 0:01:23]} 16. bxa5 {[%clk 0:02:03]}  Nxa5 {[%clk 0:01:21]} 17. Bb5 {[%clk 0:01:56]}  Qd5 {[%clk 0:01:14]} 18. Qh3+ {[%clk 0:01:50]}  Kb8 {[%clk 0:01:14]} 19. Bf4 {[%clk 0:01:50]}  g5 {[%clk 0:01:14]} 20. Be3 {[%clk 0:01:13]}  Bxe3 {[%clk 0:01:09]} 21. fxe3 {[%clk 0:01:14]}  Qe5 {[%clk 0:01:05]} 22. Rxf7 {[%clk 0:01:11]}  Qxc3 {[%clk 0:01:05]} 23. Raf1 {[%clk 0:01:11]}  Rd2 {[%clk 0:01:02]} 24. Rxh7 {[%clk 0:01:01]}  Rxh7 {[%clk 0:00:59]} 25. Qxh7 {[%clk 0:01:02]}  Qxe3+ {[%clk 0:00:59]} 26. Kh1 {[%clk 0:01:03]}  c6 {[%clk 0:00:58]} 27. Rf8+ {[%clk 0:00:39]}  Ka7 {[%clk 0:00:57]} 28. Bf1 {[%clk 0:00:39]}  Rd1 {[%clk 0:00:57]} 29. Qh8 {[%clk 0:00:32]}  Kb6 {[%clk 0:00:57]} 30. Qb2+ {[%clk 0:00:31]}  Ka7 {[%clk 0:00:51]} 31. Qh8 {[%clk 0:00:30]}  Qc1 {[%clk 0:00:46]} 32. Qf6 {[%clk 0:00:27]}  Nb3 {[%clk 0:00:44]} 33. Qf2+ {[%clk 0:00:05]}  c5 {[%clk 0:00:42]} 34. h3 {[%clk 0:00:03]}  Nd2 {[%clk 0:00:41]} 0-1


[Site "https://www.chess.com"]

[Event "Titled Tuesday Blitz January 04 2022"]
[White "Pranav, V"]
[Black "Tregubov, Pavel V."]
[WhiteFideId "25060783"]
[BlackFideId "4115341"]
[WhiteElo "2349"]
[BlackElo "2341"]
[Result "1-0"]
[Round "10"]
[TimeControl "180+1"]
[Date "2022.01.04"]
[WhiteClock "0:02:37"]
[BlackClock "0:02:11"]

1. e4 {[%clk 0:03:00]}  e5 {[%clk 0:02:57]} 2. Nf3 {[%clk 0:03:01]}  Nf6 {[%clk 0:02:57]} 3. Nxe5 {[%clk 0:02:58]}  d6 {[%clk 0:02:57]} 4. Nf3 {[%clk 0:02:57]}  Nxe4 {[%clk 0:02:58]} 5. Bd3 {[%clk 0:02:57]}  d5 {[%clk 0:02:54]} 6. Qe2 {[%clk 0:02:52]}  Be7 {[%clk 0:02:39]} 7. Bxe4 {[%clk 0:02:51]}  dxe4 {[%clk 0:02:40]} 8. Qxe4 {[%clk 0:02:52]}  O-O {[%clk 0:02:40]} 9. O-O {[%clk 0:02:52]}  Re8 {[%clk 0:02:38]} 10. d4 {[%clk 0:02:47]}  Bf6 {[%clk 0:02:37]} 11. Qd3 {[%clk 0:02:46]}  Bg4 {[%clk 0:02:36]} 12. h3 {[%clk 0:02:39]}  Bxf3 {[%clk 0:02:33]} 13. Qxf3 {[%clk 0:02:39]}  Nc6 {[%clk 0:02:34]} 14. c3 {[%clk 0:02:39]}  Qd7 {[%clk 0:02:28]} 15. Nd2 {[%clk 0:02:38]}  Qe6 {[%clk 0:02:11]} 16. d5 {[%clk 0:02:37]} 1-0


[Site "https://www.chess.com"]

[Event "Titled Tuesday Blitz January 04 2022"]
[White "Senthil Maran K"]
[Black "Terry, Renato"]
[WhiteFideId "25035681"]
[BlackFideId "3803457"]
[WhiteElo "2194"]
[BlackElo "2577"]
[Result "0-1"]
[Round "10"]
[TimeControl "180+1"]
[Date "2022.01.04"]
[WhiteClock "0:00:03"]
[BlackClock "0:01:44"]

1. d4 {[%clk 0:03:00]}  d5 {[%clk 0:02:59]} 2. Nf3 {[%clk 0:03:00]}  Nf6 {[%clk 0:02:59]} 3. g3 {[%clk 0:03:01]}  c6 {[%clk 0:02:59]} 4. c4 {[%clk 0:03:01]}  dxc4 {[%clk 0:02:59]} 5. Bg2 {[%clk 0:03:01]}  g6 {[%clk 0:02:59]} 6. a4 {[%clk 0:03:00]}  Bg7 {[%clk 0:02:59]} 7. Ne5 {[%clk 0:03:00]}  Be6 {[%clk 0:02:59]} 8. Na3 {[%clk 0:02:59]}  Nbd7 {[%clk 0:02:57]} 9. Naxc4 {[%clk 0:02:58]}  Nxe5 {[%clk 0:02:56]} 10. Nxe5 {[%clk 0:02:59]}  Ng4 {[%clk 0:02:50]} 11. Nxg4 {[%clk 0:02:47]}  Bxg4 {[%clk 0:02:50]} 12. Be3 {[%clk 0:02:47]}  Qa5+ {[%clk 0:02:48]} 13. Qd2 {[%clk 0:02:39]}  Qxd2+ {[%clk 0:02:48]} 14. Kxd2 {[%clk 0:02:39]}  O-O-O {[%clk 0:02:48]} 15. Rhd1 {[%clk 0:02:11]}  Bxd4 {[%clk 0:02:47]} 16. Bxd4 {[%clk 0:02:11]}  Rxd4+ {[%clk 0:02:48]} 17. Kc3 {[%clk 0:02:12]}  Rxd1 {[%clk 0:02:45]} 18. Rxd1 {[%clk 0:02:13]}  Rd8 {[%clk 0:02:34]} 19. Rxd8+ {[%clk 0:02:12]}  Kxd8 {[%clk 0:02:35]} 20. e3 {[%clk 0:02:12]}  Kc7 {[%clk 0:02:27]} 21. b4 {[%clk 0:02:11]}  b6 {[%clk 0:02:27]} 22. a5 {[%clk 0:02:00]}  Kd6 {[%clk 0:02:27]} 23. axb6 {[%clk 0:01:57]}  axb6 {[%clk 0:02:28]} 24. Kd4 {[%clk 0:01:48]}  e5+ {[%clk 0:02:26]} 25. Kc3 {[%clk 0:01:46]}  Be6 {[%clk 0:02:24]} 26. f4 {[%clk 0:01:45]}  c5 {[%clk 0:02:22]} 27. Bf1 {[%clk 0:01:43]}  Bd5 {[%clk 0:02:17]} 28. Bd3 {[%clk 0:01:42]}  h6 {[%clk 0:02:10]} 29. Be2 {[%clk 0:01:39]}  Ke6 {[%clk 0:02:07]} 30. Bg4+ {[%clk 0:01:38]}  Kf6 {[%clk 0:02:07]} 31. Bh3 {[%clk 0:01:10]}  g5 {[%clk 0:02:07]} 32. Bg4 {[%clk 0:01:04]}  gxf4 {[%clk 0:02:05]} 33. gxf4 {[%clk 0:01:03]}  exf4 {[%clk 0:02:06]} 34. exf4 {[%clk 0:01:03]}  Be6 {[%clk 0:02:06]} 35. h3 {[%clk 0:00:28]}  Bxg4 {[%clk 0:01:52]} 36. hxg4 {[%clk 0:00:29]}  Ke6 {[%clk 0:01:52]} 37. bxc5 {[%clk 0:00:06]}  bxc5 {[%clk 0:01:50]} 38. Kc4 {[%clk 0:00:06]}  Kd6 {[%clk 0:01:49]} 39. Kc3 {[%clk 0:00:02]}  Kd5 {[%clk 0:01:48]} 40. Kd3 {[%clk 0:00:03]}  c4+ {[%clk 0:01:48]} 41. Ke3 {[%clk 0:00:03]}  f6 {[%clk 0:01:45]} 42. Kf3 {[%clk 0:00:02]}  Kd4 {[%clk 0:01:42]} 43. Ke2 {[%clk 0:00:02]}  Ke4 {[%clk 0:01:43]} 44. g5 {[%clk 0:00:02]}  fxg5 {[%clk 0:01:42]} 45. fxg5 {[%clk 0:00:02]}  hxg5 {[%clk 0:01:43]} 46. Kd2 {[%clk 0:00:03]}  g4 {[%clk 0:01:44]} 0-1


[Site "https://www.chess.com"]

[Event "Titled Tuesday Blitz January 04 2022"]
[White "Supatashvili, Khvicha"]
[Black "Altman, Joshua"]
[WhiteFideId "13600664"]
[BlackFideId "426210"]
[WhiteElo "2705"]
[BlackElo "1945"]
[Result "1-0"]
[Round "10"]
[TimeControl "180+1"]
[Date "2022.01.04"]
[WhiteClock "0:00:57"]
[BlackClock "0:00:05"]

1. d4 {[%clk 0:03:00]}  Nf6 {[%clk 0:03:00]} 2. c4 {[%clk 0:03:00]}  e6 {[%clk 0:03:00]} 3. Nf3 {[%clk 0:02:59]}  b6 {[%clk 0:03:00]} 4. e3 {[%clk 0:02:58]}  Bb7 {[%clk 0:03:00]} 5. Bd3 {[%clk 0:02:55]}  Bb4+ {[%clk 0:03:00]} 6. Nbd2 {[%clk 0:02:54]}  O-O {[%clk 0:03:00]} 7. O-O {[%clk 0:02:54]}  Bxd2 {[%clk 0:03:00]} 8. Nxd2 {[%clk 0:02:49]}  d6 {[%clk 0:03:00]} 9. b3 {[%clk 0:02:45]}  Nbd7 {[%clk 0:02:58]} 10. Bb2 {[%clk 0:02:45]}  c5 {[%clk 0:02:50]} 11. Re1 {[%clk 0:02:44]}  Qe7 {[%clk 0:02:47]} 12. Rc1 {[%clk 0:02:42]}  Rfd8 {[%clk 0:02:46]} 13. Qe2 {[%clk 0:02:38]}  Rac8 {[%clk 0:02:44]} 14. h3 {[%clk 0:02:36]}  h6 {[%clk 0:02:43]} 15. Nf3 {[%clk 0:02:31]}  Ne4 {[%clk 0:02:40]} 16. Red1 {[%clk 0:02:27]}  f5 {[%clk 0:02:36]} 17. Bb1 {[%clk 0:02:25]}  Ndf6 {[%clk 0:02:36]} 18. Nd2 {[%clk 0:02:17]}  Qf7 {[%clk 0:02:30]} 19. f3 {[%clk 0:02:16]}  Nxd2 {[%clk 0:02:09]} 20. Rxd2 {[%clk 0:02:15]}  Kh8 {[%clk 0:01:59]} 21. Rcd1 {[%clk 0:02:13]}  cxd4 {[%clk 0:01:45]} 22. Rxd4 {[%clk 0:02:07]}  Qe7 {[%clk 0:01:43]} 23. Ba3 {[%clk 0:02:06]}  Ne8 {[%clk 0:01:42]} 24. e4 {[%clk 0:01:56]}  e5 {[%clk 0:01:41]} 25. R4d2 {[%clk 0:01:55]}  f4 {[%clk 0:01:40]} 26. Bc2 {[%clk 0:01:40]}  Rd7 {[%clk 0:01:38]} 27. b4 {[%clk 0:01:38]}  Ba6 {[%clk 0:01:32]} 28. Bb3 {[%clk 0:01:37]}  Rcd8 {[%clk 0:01:25]} 29. Qf2 {[%clk 0:01:33]}  Nc7 {[%clk 0:01:18]} 30. c5 {[%clk 0:01:25]}  dxc5 {[%clk 0:01:10]} 31. Rxd7 {[%clk 0:01:22]}  Rxd7 {[%clk 0:01:11]} 32. Rxd7 {[%clk 0:01:21]}  Qxd7 {[%clk 0:01:12]} 33. bxc5 {[%clk 0:01:21]}  Nb5 {[%clk 0:00:27]} 34. cxb6 {[%clk 0:01:19]}  axb6 {[%clk 0:00:19]} 35. Qxb6 {[%clk 0:01:16]}  Qd4+ {[%clk 0:00:17]} 36. Qxd4 {[%clk 0:01:15]}  Nxd4 {[%clk 0:00:18]} 37. Bd6 {[%clk 0:01:10]}  Nxb3 {[%clk 0:00:15]} 38. axb3 {[%clk 0:01:09]}  g5 {[%clk 0:00:14]} 39. Bxe5+ {[%clk 0:01:09]}  Kg8 {[%clk 0:00:14]} 40. Kf2 {[%clk 0:01:09]}  Kf7 {[%clk 0:00:15]} 41. Bd4 {[%clk 0:01:08]}  h5 {[%clk 0:00:14]} 42. h4 {[%clk 0:01:07]}  g4 {[%clk 0:00:11]} 43. Be5 {[%clk 0:01:07]}  Ke6 {[%clk 0:00:07]} 44. Bxf4 {[%clk 0:01:06]}  Bb7 {[%clk 0:00:08]} 45. b4 {[%clk 0:01:06]}  Bc6 {[%clk 0:00:07]} 46. Bd2 {[%clk 0:01:05]}  Bb7 {[%clk 0:00:07]} 47. Ke3 {[%clk 0:01:05]}  gxf3 {[%clk 0:00:07]} 48. gxf3 {[%clk 0:01:04]}  Bc6 {[%clk 0:00:07]} 49. f4 {[%clk 0:01:04]}  Kf7 {[%clk 0:00:07]} 50. Bc3 {[%clk 0:01:03]}  Bb7 {[%clk 0:00:07]} 51. f5 {[%clk 0:01:03]}  Bc8 {[%clk 0:00:05]} 52. Kf4 {[%clk 0:01:03]}  Bb7 {[%clk 0:00:05]} 53. e5 {[%clk 0:01:03]}  Bd5 {[%clk 0:00:05]} 54. e6+ {[%clk 0:01:03]}  Ke7 {[%clk 0:00:04]} 55. Ke5 {[%clk 0:01:03]}  Bc4 {[%clk 0:00:04]} 56. f6+ {[%clk 0:01:03]}  Ke8 {[%clk 0:00:05]} 57. Bd4 {[%clk 0:01:02]}  Kf8 {[%clk 0:00:05]} 58. Bc5+ {[%clk 0:01:02]}  Kg8 {[%clk 0:00:05]} 59. f7+ {[%clk 0:01:01]}  Kh7 {[%clk 0:00:06]} 60. f8=Q {[%clk 0:01:01]}  Bxe6 {[%clk 0:00:07]} 61. Qe7+ {[%clk 0:00:59]}  Kh8 {[%clk 0:00:07]} 62. Kf6 {[%clk 0:00:58]}  Bf7 {[%clk 0:00:05]} 63. Qf8+ {[%clk 0:00:58]}  Kh7 {[%clk 0:00:05]} 64. Qg7# {[%clk 0:00:57]} 1-0


[Site "https://www.chess.com"]

[Event "Titled Tuesday Blitz January 04 2022"]
[White "Svane, Rasmus"]
[Black "Maksimovic, Bojan"]
[WhiteFideId "4657101"]
[BlackFideId "14408120"]
[WhiteElo "2645"]
[BlackElo "2450"]
[Result "1-0"]
[Round "10"]
[TimeControl "180+1"]
[Date "2022.01.04"]
[WhiteClock "0:00:46"]
[BlackClock "0:00:01"]

1. Nf3 {[%clk 0:03:00]}  Nf6 {[%clk 0:02:59]} 2. g3 {[%clk 0:03:01]}  g6 {[%clk 0:03:00]} 3. Bg2 {[%clk 0:03:01]}  Bg7 {[%clk 0:03:01]} 4. O-O {[%clk 0:03:02]}  O-O {[%clk 0:03:01]} 5. d4 {[%clk 0:03:03]}  d5 {[%clk 0:03:01]} 6. c4 {[%clk 0:03:03]}  dxc4 {[%clk 0:03:02]} 7. Na3 {[%clk 0:03:03]}  c3 {[%clk 0:03:02]} 8. bxc3 {[%clk 0:03:04]}  c5 {[%clk 0:03:03]} 9. Ne5 {[%clk 0:03:04]}  Nc6 {[%clk 0:03:02]} 10. Nac4 {[%clk 0:03:04]}  Nxe5 {[%clk 0:02:54]} 11. Nxe5 {[%clk 0:02:54]}  Nd5 {[%clk 0:02:54]} 12. Bd2 {[%clk 0:02:52]}  Bxe5 {[%clk 0:02:53]} 13. dxe5 {[%clk 0:02:52]}  Nb6 {[%clk 0:02:32]} 14. Bh6 {[%clk 0:02:37]}  Re8 {[%clk 0:02:25]} 15. Qxd8 {[%clk 0:02:37]}  Rxd8 {[%clk 0:02:26]} 16. Rfd1 {[%clk 0:02:37]}  Bg4 {[%clk 0:01:17]} 17. Bxb7 {[%clk 0:02:35]}  Bxe2 {[%clk 0:01:16]} 18. Rxd8+ {[%clk 0:02:14]}  Rxd8 {[%clk 0:01:17]} 19. Be3 {[%clk 0:02:15]}  Rd7 {[%clk 0:00:51]} 20. Be4 {[%clk 0:02:14]}  Bd3 {[%clk 0:00:42]} 21. Bxd3 {[%clk 0:02:06]}  Rxd3 {[%clk 0:00:43]} 22. Bxc5 {[%clk 0:02:06]}  Rxc3 {[%clk 0:00:19]} 23. Bxe7 {[%clk 0:02:06]}  Nd5 {[%clk 0:00:20]} 24. Bg5 {[%clk 0:01:59]}  Kg7 {[%clk 0:00:17]} 25. Rd1 {[%clk 0:01:59]}  Rc5 {[%clk 0:00:18]} 26. Rd4 {[%clk 0:01:49]}  h6 {[%clk 0:00:17]} 27. Bd8 {[%clk 0:01:45]}  g5 {[%clk 0:00:12]} 28. Ra4 {[%clk 0:01:42]}  Rc8 {[%clk 0:00:12]} 29. Ba5 {[%clk 0:01:35]}  Rc5 {[%clk 0:00:06]} 30. Kf1 {[%clk 0:01:32]}  Kg6 {[%clk 0:00:06]} 31. Bd2 {[%clk 0:01:32]}  Rc2 {[%clk 0:00:06]} 32. Ke1 {[%clk 0:01:31]}  Rc7 {[%clk 0:00:04]} 33. g4 {[%clk 0:01:31]}  Re7 {[%clk 0:00:03]} 34. Kf1 {[%clk 0:01:26]}  Nb6 {[%clk 0:00:03]} 35. Ra5 {[%clk 0:01:21]}  Kh7 {[%clk 0:00:03]} 36. Bc3 {[%clk 0:01:16]}  Rd7 {[%clk 0:00:02]} 37. Ke2 {[%clk 0:01:15]}  Kg6 {[%clk 0:00:02]} 38. a4 {[%clk 0:01:14]}  Kg7 {[%clk 0:00:02]} 39. Ra6 {[%clk 0:01:14]}  Kh7 {[%clk 0:00:02]} 40. a5 {[%clk 0:01:08]}  Nd5 {[%clk 0:00:02]} 41. Bd2 {[%clk 0:01:08]}  Nf4+ {[%clk 0:00:01]} 42. Bxf4 {[%clk 0:01:08]}  gxf4 {[%clk 0:00:02]} 43. Kf3 {[%clk 0:01:08]}  Kg7 {[%clk 0:00:01]} 44. Kxf4 {[%clk 0:01:08]}  Rd4+ {[%clk 0:00:02]} 45. Kf5 {[%clk 0:01:07]}  Rd2 {[%clk 0:00:02]} 46. f4 {[%clk 0:01:06]}  Rxh2 {[%clk 0:00:03]} 47. Rxa7 {[%clk 0:01:06]}  Ra2 {[%clk 0:00:03]} 48. e6 {[%clk 0:01:06]}  Kg8 {[%clk 0:00:03]} 49. Rxf7 {[%clk 0:01:00]}  Rxa5+ {[%clk 0:00:02]} 50. Kg6 {[%clk 0:00:58]}  Ra6 {[%clk 0:00:02]} 51. f5 {[%clk 0:00:57]}  Ra4 {[%clk 0:00:02]} 52. Rg7+ {[%clk 0:00:53]}  Kh8 {[%clk 0:00:03]} 53. Kf6 {[%clk 0:00:49]}  Ra8 {[%clk 0:00:01]} 54. Rg6 {[%clk 0:00:48]}  h5 {[%clk 0:00:01]} 55. gxh5 {[%clk 0:00:47]}  Rf8+ {[%clk 0:00:01]} 56. Kg5 {[%clk 0:00:46]} 1-0


[Site "https://www.chess.com"]

[Event "Titled Tuesday Blitz January 04 2022"]
[White "Tsydypov, Zhamsaran"]
[Black "Xiong, Jeffery"]
[WhiteFideId "4108566"]
[BlackFideId "2047640"]
[WhiteElo "2614"]
[BlackElo "2727"]
[Result "0-1"]
[Round "10"]
[TimeControl "180+1"]
[Date "2022.01.04"]
[WhiteClock "0:00:02"]
[BlackClock "0:00:10"]

1. e4 {[%clk 0:03:00]}  c6 {[%clk 0:03:00]} 2. d4 {[%clk 0:02:54]}  d5 {[%clk 0:03:00]} 3. e5 {[%clk 0:02:54]}  Bf5 {[%clk 0:03:00]} 4. g4 {[%clk 0:02:54]}  Bd7 {[%clk 0:02:58]} 5. Nc3 {[%clk 0:02:54]}  e6 {[%clk 0:02:54]} 6. Be3 {[%clk 0:02:54]}  Qc7 {[%clk 0:02:48]} 7. f4 {[%clk 0:02:48]}  h5 {[%clk 0:02:48]} 8. gxh5 {[%clk 0:02:48]}  Nh6 {[%clk 0:02:48]} 9. Bh3 {[%clk 0:02:44]}  c5 {[%clk 0:02:47]} 10. Qd2 {[%clk 0:02:32]}  Nc6 {[%clk 0:02:43]} 11. Nf3 {[%clk 0:02:28]}  Na5 {[%clk 0:02:43]} 12. O-O-O {[%clk 0:01:43]}  Nc4 {[%clk 0:02:42]} 13. Qe2 {[%clk 0:01:43]}  Qa5 {[%clk 0:02:37]} 14. Nd2 {[%clk 0:01:38]}  Nxb2 {[%clk 0:01:53]} 15. Kxb2 {[%clk 0:01:37]}  Qb4+ {[%clk 0:01:53]} 16. Nb3 {[%clk 0:01:34]}  c4 {[%clk 0:01:53]} 17. Bd2 {[%clk 0:01:10]}  a5 {[%clk 0:01:41]} 18. Ka1 {[%clk 0:00:44]}  cxb3 {[%clk 0:01:41]} 19. Nxd5 {[%clk 0:00:43]}  Qa3 {[%clk 0:01:30]} 20. cxb3 {[%clk 0:00:41]}  exd5 {[%clk 0:01:23]} 21. Bxd7+ {[%clk 0:00:41]}  Kxd7 {[%clk 0:01:24]} 22. Qb5+ {[%clk 0:00:41]}  Ke6 {[%clk 0:01:24]} 23. Qxb7 {[%clk 0:00:37]}  Rd8 {[%clk 0:00:58]} 24. Qb6+ {[%clk 0:00:20]}  Bd6 {[%clk 0:00:39]} 25. exd6 {[%clk 0:00:19]}  Rxd6 {[%clk 0:00:39]} 26. Qc7 {[%clk 0:00:17]}  Nf5 {[%clk 0:00:39]} 27. Rde1+ {[%clk 0:00:16]}  Kf6 {[%clk 0:00:40]} 28. Re5 {[%clk 0:00:15]}  Rf8 {[%clk 0:00:23]} 29. Qc2 {[%clk 0:00:09]}  Nxd4 {[%clk 0:00:18]} 30. Qd3 {[%clk 0:00:07]}  Ne6 {[%clk 0:00:16]} 31. Rc1 {[%clk 0:00:05]}  a4 {[%clk 0:00:13]} 32. Qf5+ {[%clk 0:00:05]}  Ke7 {[%clk 0:00:13]} 33. Rc7+ {[%clk 0:00:02]}  Kd8 {[%clk 0:00:12]} 34. Rb7 {[%clk 0:00:02]}  Kc8 {[%clk 0:00:10]} 0-1


[Site "https://www.chess.com"]

[Event "Titled Tuesday Blitz January 04 2022"]
[White "Vokhidov, Shamsiddin"]
[Black "Hasangatin, Ramil"]
[WhiteFideId "14204223"]
[BlackFideId "4122160"]
[WhiteElo "2611"]
[BlackElo "2375"]
[Result "1-0"]
[Round "10"]
[TimeControl "180+1"]
[Date "2022.01.04"]
[WhiteClock "0:01:54"]
[BlackClock "0:00:28"]

1. e4 {[%clk 0:03:00]}  d5 {[%clk 0:02:54]} 2. exd5 {[%clk 0:03:00]}  Qxd5 {[%clk 0:02:54]} 3. Nc3 {[%clk 0:03:01]}  Qd6 {[%clk 0:02:54]} 4. d4 {[%clk 0:03:01]}  Nf6 {[%clk 0:02:54]} 5. Nf3 {[%clk 0:03:01]}  c6 {[%clk 0:02:54]} 6. Ne5 {[%clk 0:03:00]}  Nbd7 {[%clk 0:02:53]} 7. Nc4 {[%clk 0:03:00]}  Qc7 {[%clk 0:02:53]} 8. Qf3 {[%clk 0:02:58]}  Nb6 {[%clk 0:02:53]} 9. Bf4 {[%clk 0:02:57]}  Qd8 {[%clk 0:02:53]} 10. Be5 {[%clk 0:02:53]}  Be6 {[%clk 0:02:46]} 11. Nxb6 {[%clk 0:02:50]}  Qxb6 {[%clk 0:02:38]} 12. O-O-O {[%clk 0:02:48]}  O-O-O {[%clk 0:02:37]} 13. Be2 {[%clk 0:02:44]}  Qa5 {[%clk 0:02:27]} 14. a3 {[%clk 0:02:41]}  Bg4 {[%clk 0:02:18]} 15. Qe3 {[%clk 0:02:37]}  Bxe2 {[%clk 0:02:15]} 16. Qxe2 {[%clk 0:02:38]}  e6 {[%clk 0:02:11]} 17. Qf3 {[%clk 0:02:37]}  Be7 {[%clk 0:02:10]} 18. Rhe1 {[%clk 0:02:34]}  Rhf8 {[%clk 0:01:59]} 19. Kb1 {[%clk 0:02:32]}  Ne8 {[%clk 0:01:45]} 20. Ne4 {[%clk 0:02:29]}  Qd5 {[%clk 0:01:40]} 21. Qe2 {[%clk 0:02:24]}  f6 {[%clk 0:01:21]} 22. Bg3 {[%clk 0:02:23]}  f5 {[%clk 0:00:58]} 23. Nc3 {[%clk 0:02:22]}  Qxg2 {[%clk 0:00:58]} 24. Qxe6+ {[%clk 0:02:09]}  Rd7 {[%clk 0:00:58]} 25. d5 {[%clk 0:02:09]}  f4 {[%clk 0:00:53]} 26. Rg1 {[%clk 0:01:56]}  Qf3 {[%clk 0:00:51]} 27. Rd3 {[%clk 0:01:55]}  Qh5 {[%clk 0:00:28]} 28. dxc6 {[%clk 0:01:54]} 1-0


[Site "https://www.chess.com"]